bitfinex-derivatives/quotes_BTCF0:USTF0_20241122
["timestamp","ask_amount","ask_price","bid_price","bid_amount"]
[1732250863874,0.050478,98953.0,98952.0,0.050476]
[1732250864472,0.050478,98949.0,98948.0,0.3608]
[1732250867070,0.050484,98936.0,98934.0,0.0094]
[1732250867271,0.050484,98936.0,98935.0,0.1502]
[1732250867577,0.050524,98936.0,98935.0,0.1502]
[1732250868175,4e-05,98936.0,98935.0,0.200685]
[1732250869174,0.050524,98936.0,98935.0,0.200685]
[1732250873773,0.050524,98936.0,98935.0,0.1502]
[1732250874171,0.050486,98933.0,98931.0,0.3608]
[1732250874677,4e-05,98932.0,98931.0,0.3608]
[1732250876184,0.050489,98927.0,98926.0,0.3608]
[1732250876482,0.050529,98927.0,98926.0,0.3608]
[1732250879376,4e-05,98927.0,98926.0,0.3608]
[1732250879780,4e-05,98927.0,98926.0,0.411289]
[1732250880271,1.61016,98955.0,98926.0,0.71096163]
[1732250880587,0.050478,98948.0,98947.0,0.3608]
[1732250881085,0.27946241,98960.0,98938.0,0.0024]
[1732250881086,0.050481,98942.0,98939.0,0.3608]
[1732250881284,0.12726241,98950.0,98939.0,0.507]
[1732250881489,4e-05,98940.0,98939.0,0.507]
[1732250882574,4e-05,98940.0,98939.0,0.3608]
[1732250882771,0.050484,98936.0,98935.0,0.0094]
[1732250882971,0.050484,98936.0,98935.0,0.3702]
[1732250883176,0.050524,98936.0,98935.0,0.3702]
[1732250884878,0.050524,98936.0,98935.0,0.420685]
[1732250885079,4e-05,98936.0,98935.0,0.420685]
[1732250889482,4e-05,98936.0,98935.0,0.723925]
[1732250890388,0.050474,98956.0,98935.0,0.67344]
[1732250890593,0.050474,98956.0,98955.0,0.3608]
[1732250891078,0.050474,98956.0,98955.0,0.411274]
[1732250891684,0.050474,98956.0,98955.0,0.3608]
[1732250892880,0.12786242,98970.0,98955.0,0.3608]
[1732250893081,0.050472,98960.0,98959.0,0.050472]
[1732250893284,0.050468,98968.0,98956.0,0.050474]
[1732250893484,0.050473,98959.0,98956.0,0.050474]
[1732250893789,4e-05,98957.0,98956.0,0.050474]
[1732250893993,0.00151602,98979.0,98955.0,0.47096]
[1732250894191,0.050466,98972.0,98971.0,0.3608]
[1732250895084,0.04945884,98979.0,98971.0,0.3608]
[1732250895394,0.04945884,98979.0,98965.0,0.050469]
[1732250895395,0.050469,98966.0,98965.0,0.123769]
[1732250895596,0.050469,98966.0,98965.0,0.0733]
[1732250898596,0.04707674,98968.0,98963.0,0.3608]
[1732250898888,0.050475,98954.0,98950.0,0.11016]
[1732250899094,4e-05,98964.0,98946.0,0.123079]
[1732250899095,0.050476,98952.0,98951.0,0.3608]
[1732250899394,0.050516,98952.0,98951.0,0.3809788]
[1732250902590,0.050516,98952.0,98951.0,0.4314558]
[1732250903600,0.050516,98952.0,98951.0,0.3809788]
[1732250904085,0.050516,98952.0,98951.0,0.3608]
[1732250908600,0.050516,98952.0,98951.0,0.411277]
[1732250909401,4e-05,98952.0,98951.0,0.411277]
[1732250910508,4e-05,98952.0,98951.0,0.45813654]
[1732250914299,0.050516,98952.0,98951.0,0.411277]
[1732250915397,0.050516,98952.0,98951.0,0.43145874]
[1732250915694,0.050516,98952.0,98951.0,0.38098174]
[1732250917498,0.050516,98952.0,98951.0,0.3608]
[1732250917994,0.050481,98942.0,98937.0,0.060583]
[1732250918200,0.17773941,98951.0,98936.0,0.43922]
[1732250918499,0.050482,98940.0,98939.0,0.050483]
[1732250920206,0.03708114,98945.0,98936.0,0.43926]
[1732250920207,0.050484,98937.0,98936.0,0.43926]
[1732250920405,0.050484,98937.0,98936.0,0.4387]
[1732250920802,0.050484,98937.0,98936.0,0.3608]
[1732250924010,0.050484,98937.0,98922.0,0.059891]
[1732250924214,0.050491,98923.0,98922.0,0.050491]
[1732250924410,4e-05,98925.0,98919.0,0.7423388]
[1732250924712,0.12726241,98930.0,98919.0,0.7417788]
[1732250924917,0.17774941,98930.0,98929.0,0.3608]
[1732250925108,0.050487,98930.0,98929.0,0.411288]
[1732250925503,0.11008,98941.0,98929.0,0.3608]
[1732250925704,0.050482,98941.0,98940.0,0.3608]
[1732250925911,0.050482,98941.0,98940.0,0.36112]
[1732250926406,0.03704063,98957.0,98940.0,0.36112]
[1732250926612,0.050473,98957.0,98956.0,0.7216]
[1732250926806,0.050473,98957.0,98956.0,0.72192]
[1732250927308,0.050473,98957.0,98956.0,0.36112]
[1732250927500,0.08903124,98957.0,98956.0,0.36112]
[1732250929000,0.08903124,98957.0,98956.0,0.00032]
[1732250929203,0.39219124,98957.0,98956.0,0.00032]
[1732250932809,0.39219124,98957.0,98956.0,1e-06]
[1732250933107,0.050483,98939.0,98938.0,0.0094]
[1732250933410,0.050523,98939.0,98937.0,0.3608]
[1732250933914,4e-05,98938.0,98937.0,0.3608]
[1732250935702,0.03772621,98938.0,98937.0,0.3608]
[1732250940809,4e-05,98938.0,98937.0,0.3608]
[1732250941012,0.11004,98959.0,98937.0,0.3608]
[1732250941205,0.050472,98959.0,98958.0,0.3608]
[1732250941405,0.050472,98959.0,98958.0,0.36084]
[1732250941612,0.08882696,98959.0,98958.0,0.36084]
[1732250942816,0.39198696,98959.0,98958.0,0.36084]
[1732250943019,0.33835496,98959.0,98946.0,0.0024]
[1732250943215,0.050479,98947.0,98940.0,0.0024]
[1732250943416,0.050483,98939.0,98938.0,0.0719]
[1732250943718,0.050523,98939.0,98938.0,0.0719]
[1732250944425,0.08792041,98939.0,98938.0,0.0719]
[1732250944814,0.08792041,98939.0,98938.0,0.08775034]
[1732250945020,0.08792041,98939.0,98938.0,0.0719]
[1732250946310,0.050486,98933.0,98926.0,0.0024]
[1732250946515,0.05049,98925.0,98924.0,0.00027999]
[1732250946820,0.05053,98925.0,98924.0,0.00027999]
[1732250951917,4e-05,98927.0,98924.0,0.36107999]
[1732250952122,4e-05,98927.0,98926.0,0.050489]
[1732250952419,0.050479,98946.0,98944.0,0.05048]
[1732250952725,0.050479,98946.0,98944.0,0.05056]
[1732250952921,0.050479,98946.0,98944.0,8e-05]
[1732250953428,0.12726241,98954.0,98944.0,0.36088]
[1732250953724,0.050479,98946.0,98944.0,0.3608]
[1732250956615,0.08912195,98946.0,98944.0,0.3608]
[1732250957621,0.3032,98945.0,98944.0,0.3608]
[1732250957823,0.11004,98945.0,98944.0,0.3608]
[1732250958009,0.41324,98945.0,98928.0,0.01612398]
[1732250958210,0.050485,98934.0,98928.0,0.01612398]
[1732250958411,0.050525,98934.0,98927.0,0.0746]
[1732250958614,0.050488,98929.0,98927.0,0.0746]
[1732250958821,4e-05,98928.0,98927.0,0.0746]
[1732250966331,0.050528,98928.0,98927.0,0.0746]
[1732250975934,4e-05,98928.0,98927.0,0.0746]
[1732250977335,4e-05,98928.0,98927.0,0.125089]
[1732250978530,0.050528,98928.0,98927.0,0.125089]
[1732250979740,0.050528,98928.0,98927.0,0.0746]
[1732250980443,0.050528,98928.0,98926.0,0.3608]
[1732250980444,0.050489,98927.0,98926.0,0.3608]
[1732250981341,0.050529,98927.0,98926.0,0.3608]
[1732250991641,0.202529,98927.0,98926.0,0.3608]
[1732250992534,0.505769,98927.0,98926.0,0.3608]
[1732250993543,0.615849,98927.0,98926.0,0.3608]
[1732250996245,0.312609,98927.0,98926.0,0.3608]
[1732250996550,0.160609,98927.0,98926.0,0.3608]
[1732250999346,0.463849,98927.0,98926.0,0.3608]
[1732251000544,0.050492,98921.0,98920.0,0.3608]
[1732251000837,0.050532,98921.0,98920.0,0.3608]
[1732251023049,0.160532,98921.0,98920.0,0.3608]
[1732251032364,0.160532,98921.0,98920.0,0.37663995]
[1732251032566,0.160532,98921.0,98920.0,0.3608]
[1732251034168,0.050495,98915.0,98914.0,0.36132]
[1732251034367,0.050495,98915.0,98914.0,0.3608]
[1732251034668,0.050535,98915.0,98914.0,0.3608]
[1732251035961,1.550535,98915.0,98914.0,0.3608]
[1732251036463,1.59716706,98915.0,98914.0,0.3608]
[1732251037463,1.54667206,98915.0,98914.0,0.01583995]
[1732251037663,1.59716706,98915.0,98914.0,0.01583995]
[1732251039173,0.050496,98913.0,98912.0,0.0741]
[1732251039473,0.050536,98913.0,98912.0,0.0741]
[1732251040272,0.050536,98913.0,98912.0,0.08993995]
[1732251040976,0.050536,98913.0,98912.0,0.0741]
[1732251042258,0.050536,98913.0,98905.0,0.0735]
[1732251042468,0.050499,98906.0,98905.0,0.0735]
[1732251042671,0.160539,98906.0,98905.0,0.0735]
[1732251044672,0.11004,98906.0,98905.0,0.07969601]
[1732251044871,0.050539,98906.0,98905.0,0.07969601]
[1732251045075,0.160539,98906.0,98905.0,0.09553596]
[1732251045374,0.160539,98906.0,98905.0,0.08933995]
[1732251046679,0.160539,98906.0,98905.0,0.09549231]
[1732251047775,0.160539,98906.0,98905.0,0.07972665]
[1732251049767,1.660539,98906.0,98905.0,0.07972665]
[1732251050662,1.660539,98906.0,98905.0,0.00622665]
[1732251051067,1.963859,98906.0,98905.0,0.00622665]
[1732251051273,1.963859,98906.0,98905.0,0.00627328]
[1732251052472,1.963859,98906.0,98905.0,2.8e-07]
[1732251052972,0.050502,98901.0,98900.0,0.408717]
[1732251053171,0.050505,98895.0,98888.0,0.0024]
[1732251053369,0.050505,98895.0,98888.0,0.01583995]
[1732251053672,0.050505,98895.0,98890.0,0.3608]
[1732251053984,1.550505,98895.0,98890.0,0.3608]
[1732251054172,1.550545,98895.0,98890.0,0.3608]
[1732251054373,1.550545,98895.0,98894.0,0.08873995]
[1732251054683,4e-05,98895.0,98894.0,0.08873995]
[1732251054978,4e-05,98895.0,98894.0,0.09893996]
[1732251055278,0.09687576,98895.0,98894.0,0.09893996]
[1732251055481,1.550545,98895.0,98894.0,0.08873995]
[1732251057372,1.550545,98895.0,98894.0,0.0729]
[1732251058573,1.550545,98895.0,98894.0,0.08306813]
[1732251060981,1.550545,98895.0,98894.0,0.0729]
[1732251061178,1.550545,98895.0,98894.0,0.08320394]
[1732251061682,1.550545,98895.0,98894.0,0.08318065]
[1732251062580,1.550545,98895.0,98894.0,0.0729]
[1732251064788,1.550545,98895.0,98894.0,0.07917837]
[1732251065685,1.5,98895.0,98894.0,0.08936711]
[1732251066281,1.550505,98895.0,98894.0,0.08936711]
[1732251066487,1.57070459,98895.0,98894.0,0.08936711]
[1732251066681,1.57070459,98895.0,98894.0,0.07917837]
[1732251067478,1.57070459,98895.0,98894.0,0.0729]
[1732251067676,1.57070459,98895.0,98894.0,0.07906538]
[1732251069581,1.57070459,98895.0,98894.0,0.0729]
[1732251071786,1.68054459,98895.0,98894.0,0.0729]
[1732251073578,1.68054459,98895.0,98894.0,0.07908169]
[1732251074486,1.68054459,98895.0,98894.0,0.07908237]
[1732251076090,0.18054459,98895.0,98894.0,0.07908237]
[1732251077087,1.68054459,98895.0,98894.0,0.07908237]
[1732251077778,1.68054459,98895.0,98894.0,0.08873995]
[1732251077982,1.68054459,98895.0,98894.0,0.07909055]
[1732251078377,1.68054459,98895.0,98894.0,0.00619055]
[1732251078585,1.68054459,98895.0,98894.0,9e-08]
[1732251078888,1.68054459,98895.0,98884.0,0.1546]
[1732251078889,0.05051,98885.0,98884.0,0.0774]
[1732251079092,0.050516,98874.0,98873.0,0.0024]
[1732251079280,0.10984,98874.0,98873.0,0.0784]
[1732251079484,0.160356,98874.0,98873.0,0.0784]
[1732251081590,0.10984,98874.0,98862.0,0.0024]
[1732251081794,0.10984,98874.0,98860.0,0.44252]
[1732251081795,0.050522,98861.0,98860.0,0.44252]
[1732251082097,0.050562,98861.0,98860.0,0.0812]
[1732251082490,0.050562,98861.0,98853.0,0.1525]
[1732251082790,0.050566,98854.0,98853.0,0.1525]
[1732251083694,0.02783361,98854.0,98853.0,0.1627612]
[1732251084590,0.02783361,98854.0,98853.0,0.16275729]
[1732251085395,0.13743361,98854.0,98853.0,0.16275729]
[1732251086094,0.0780685,98854.0,98853.0,0.16275729]
[1732251086682,0.04858699,98860.0,98853.0,0.1525]
[1732251086890,0.08360879,98863.0,98853.0,0.1525]
[1732251087190,0.051278,98870.0,98869.0,0.050518]
[1732251087397,0.444117,98872.0,98871.0,0.050517]
[1732251087590,0.050518,98870.0,98869.0,0.050718]
[1732251087794,0.050518,98870.0,98869.0,0.0002]
[1732251088194,1.550518,98870.0,98869.0,0.0002]
[1732251088393,0.050518,98870.0,98869.0,0.0002]
[1732251088597,0.050558,98870.0,98869.0,0.0002]
[1732251088890,1.550558,98870.0,98869.0,0.0002]
[1732251089690,0.050523,98859.0,98858.0,0.0024]
[1732251089884,0.050526,98854.0,98847.0,0.0024]
[1732251090089,0.050526,98854.0,98843.0,0.01848829]
[1732251090283,0.050526,98854.0,98844.0,0.01848829]
[1732251090284,0.050566,98854.0,98844.0,0.01848829]
[1732251090491,0.050566,98854.0,98853.0,0.17709498]
[1732251090695,0.050566,98854.0,98853.0,0.1525]
[1732251091095,0.050566,98854.0,98853.0,0.17098829]
[1732251091395,0.050566,98854.0,98853.0,0.1525]
[1732251091805,4e-05,98854.0,98853.0,0.1525]
[1732251092000,4e-05,98854.0,98853.0,0.17098829]
[1732251092784,0.050566,98854.0,98853.0,0.53178829]
[1732251092997,0.050566,98854.0,98853.0,0.5133]
[1732251094395,0.09703673,98854.0,98853.0,0.53178829]
[1732251094585,0.09703673,98854.0,98853.0,0.37928829]
[1732251094991,0.09703673,98854.0,98853.0,0.3608]
[1732251098498,0.04651073,98854.0,98853.0,0.3608]
[1732251098694,0.04651073,98854.0,98853.0,0.411327]
[1732251098892,0.04651073,98854.0,98853.0,0.42981529]
[1732251099590,0.09703673,98854.0,98853.0,0.411327]
[1732251099900,0.09703673,98854.0,98853.0,0.3608]
[1732251107697,0.09703673,98854.0,98853.0,0.45768829]
[1732251107911,0.09703673,98854.0,98853.0,0.09688829]
[1732251108110,0.09703673,98854.0,98853.0,0.45768829]
[1732251112111,0.09703673,98854.0,98853.0,0.4392]
[1732251113714,0.09703673,98854.0,98853.0,0.3608]
[1732251117112,0.05053,98847.0,98846.0,0.36132]
[1732251117409,0.05053,98847.0,98846.0,0.3608]
[1732251117607,0.05057,98847.0,98846.0,0.3608]
[1732251118418,0.05057,98847.0,98846.0,0.37928829]
[1732251118912,0.05057,98847.0,98846.0,0.3608]
[1732251122719,4e-05,98847.0,98846.0,0.37928829]
[1732251122911,0.05057,98847.0,98846.0,0.37928829]
[1732251123613,0.05057,98847.0,98846.0,0.3608]
[1732251129524,0.05053,98847.0,98846.0,0.3608]
[1732251141125,1.55053,98847.0,98846.0,0.3608]
[1732251141531,0.05053,98847.0,98846.0,0.3608]
[1732251142129,0.05053,98847.0,98835.0,0.3638]
[1732251142130,0.050533,98841.0,98840.0,0.3608]
[1732251142325,0.159733,98841.0,98840.0,0.31728891]
[1732251142631,0.159733,98841.0,98830.0,0.0024]
[1732251142632,0.050538,98831.0,98830.0,0.0024]
[1732251142823,0.050538,98831.0,98826.0,0.36132]
[1732251142824,0.05054,98827.0,98826.0,0.36132]
[1732251143135,0.05058,98827.0,98826.0,0.3608]
[1732251143631,0.15978,98827.0,98826.0,0.3608]
[1732251148132,0.2071382,98827.0,98826.0,0.3608]
[1732251150737,0.0979382,98827.0,98826.0,0.3608]
[1732251153438,0.00072,98847.0,98826.0,0.7149]
[1732251153644,0.050524,98859.0,98840.0,0.3608]
[1732251153645,0.1092,98843.0,98840.0,0.3608]
[1732251153843,0.159732,98843.0,98842.0,0.3608]
[1732251154231,0.050532,98843.0,98842.0,0.3608]
[1732251154748,0.050533,98841.0,98840.0,0.3608]
[1732251155046,0.050533,98841.0,98832.0,0.3608]
[1732251155047,0.050537,98833.0,98832.0,0.3608]
[1732251155246,0.159737,98833.0,98832.0,0.3608]
[1732251155540,0.159777,98833.0,98832.0,0.3608]
[1732251156142,0.159777,98833.0,98800.0,0.1]
[1732251156143,0.050553,98801.0,98800.0,0.1]
[1732251156343,0.050567,98773.0,98772.0,0.2348]
[1732251156553,0.050567,98773.0,98767.0,0.02020835]
[1732251156554,1.5,98773.0,98767.0,0.02020835]
[1732251156848,0.05234813,98778.0,98770.0,0.050569]
[1732251157048,0.050568,98773.0,98767.0,0.02020835]
[1732251157244,0.050568,98772.0,98764.0,0.050572]
[1732251157445,4e-05,98768.0,98765.0,0.050571]
[1732251157943,4e-05,98768.0,98766.0,0.050571]
[1732251158444,4e-05,98768.0,98767.0,0.30376]
[1732251162751,0.48855368,98810.0,98792.0,0.050557]
[1732251162944,0.48855368,98810.0,98775.0,0.050566]
[1732251162945,0.0047,98794.0,98793.0,0.212457]
[1732251163143,0.050556,98795.0,98793.0,0.212457]
[1732251163849,0.04812557,98801.0,98799.0,0.050554]
[1732251164045,0.05055,98807.0,98794.0,0.3608]
[1732251164249,1.5,98806.0,98800.0,0.00011999]
[1732251164445,0.050552,98803.0,98801.0,0.050553]
[1732251165251,0.050553,98801.0,98800.0,0.00011999]
[1732251170150,1.5,98807.0,98800.0,0.36091999]
[1732251170355,0.09794463,98810.0,98809.0,0.050549]
[1732251170549,0.09794463,98810.0,98809.0,0.040549]
[1732251170854,0.04739563,98810.0,98809.0,0.00011999]
[1732251171156,0.12775368,98820.0,98809.0,0.00011999]
[1732251171456,0.17829668,98820.0,98819.0,0.00011999]
[1732251171652,0.411343,98820.0,98819.0,0.00011999]
[1732251172054,0.050543,98820.0,98819.0,0.00011999]
[1732251172254,0.04794875,98821.0,98819.0,0.00011999]
[1732251172550,0.04794875,98821.0,98820.0,0.00011999]
[1732251174446,0.04794875,98821.0,98820.0,0.05066299]
[1732251174847,0.04794875,98821.0,98820.0,0.00011999]
[1732251175252,0.09849175,98821.0,98820.0,0.00011999]
[1732251177245,0.09849175,98821.0,98820.0,0.05066299]
[1732251178754,0.09849175,98821.0,98820.0,0.00011999]
[1732251180154,0.04794875,98821.0,98820.0,0.00011999]
[1732251180461,0.04794875,98821.0,98820.0,0.41146299]
[1732251181149,0.00151951,98821.0,98820.0,0.71506299]
[1732251183158,0.00151951,98821.0,98820.0,0.36091999]
[1732251183358,0.05206251,98821.0,98820.0,0.36091999]
[1732251183568,0.05206251,98821.0,98820.0,0.00011999]
[1732251183569,0.35566251,98821.0,98820.0,0.00011999]
[1732251183754,0.35566251,98821.0,98809.0,0.00011999]
[1732251183755,0.050549,98810.0,98809.0,0.00011999]
[1732251184054,0.159709,98810.0,98797.0,0.0024]
[1732251184256,0.12775368,98807.0,98789.0,0.0024]
[1732251184459,0.050559,98790.0,98789.0,0.052959]
[1732251184661,0.050561,98786.0,98785.0,0.36132]
[1732251184971,0.05068099,98786.0,98785.0,0.3608]
[1732251185857,0.05068099,98786.0,98785.0,0.411361]
[1732251186256,0.05068099,98786.0,98785.0,0.3608]
[1732251187566,0.00011999,98786.0,98773.0,0.0778]
[1732251187765,0.00011999,98786.0,98785.0,0.411361]
[1732251191282,0.04671878,98800.0,98799.0,0.050554]
[1732251191458,0.050547,98814.0,98799.0,0.050554]
[1732251191459,0.0101,98817.0,98816.0,0.050545]
[1732251191766,0.0887,98825.0,98800.0,0.050554]
[1732251191767,1.50223951,98821.0,98811.0,0.3608]
[1732251191967,0.050546,98815.0,98811.0,0.3608]
[1732251192265,0.050548,98812.0,98811.0,0.3608]
[1732251195668,0.050552,98804.0,98803.0,0.050552]
[1732251196767,0.05055,98807.0,98806.0,0.05055]
[1732251197165,0.05055,98807.0,98806.0,0.05059]
[1732251197362,0.04880317,98821.0,98806.0,4e-05]
[1732251197566,0.05206251,98821.0,98820.0,0.3608]
[1732251197763,0.10041837,98821.0,98820.0,0.36084]
[1732251204661,0.04987537,98821.0,98820.0,0.36084]
[1732251204863,0.04987537,98821.0,98820.0,0.411383]
[1732251205269,0.10041837,98821.0,98820.0,0.411383]
[1732251207876,0.10041837,98821.0,98820.0,0.36084]
[1732251208069,0.40401837,98821.0,98820.0,0.36084]
[1732251208268,0.050547,98813.0,98812.0,0.00052]
[1732251208470,1.550547,98813.0,98812.0,0.00052]
[1732251208771,1.550547,98813.0,98803.0,0.3608]
[1732251208772,0.050552,98804.0,98803.0,0.411352]
[1732251209169,0.050592,98804.0,98803.0,0.411352]
[1732251211776,0.09813151,98804.0,98803.0,0.411352]
[1732251212171,0.40837951,98804.0,98791.0,0.0024]
[1732251212478,0.050558,98792.0,98791.0,0.0024]
[1732251212680,0.050561,98786.0,98784.0,0.3608]
[1732251213077,4e-05,98785.0,98784.0,0.3608]
[1732251215087,0.04839989,98785.0,98784.0,0.3608]
[1732251215385,0.04839989,98785.0,98773.0,0.0024]
[1732251215386,0.050567,98774.0,98773.0,0.0024]
[1732251215676,0.050567,98774.0,98768.0,0.00046106]
[1732251215677,1.550567,98774.0,98768.0,0.00046106]
[1732251215883,1.550607,98774.0,98768.0,0.00046106]
[1732251216085,4e-05,98773.0,98768.0,0.00046106]
[1732251216672,0.36084,98773.0,98768.0,0.00046106]
[1732251216871,0.36084,98773.0,98761.0,0.239]
[1732251216872,0.050573,98762.0,98761.0,0.0024]
[1732251217078,0.3608,98764.0,98749.0,0.0024]
[1732251217286,0.050579,98750.0,98748.0,0.41138]
[1732251217475,4e-05,98750.0,98748.0,0.41138]
[1732251217883,0.05062,98750.0,98748.0,0.41138]
[1732251218385,4e-05,98749.0,98748.0,0.41138]
[1732251234184,0.04707238,98753.0,98752.0,0.050578]
[1732251234496,0.050577,98755.0,98754.0,0.050577]
[1732251235993,1.5,98765.0,98748.0,0.72212]
[1732251236297,0.05058,98750.0,98749.0,0.050578]
[1732251240191,0.050574,98762.0,98761.0,0.050574]
[1732251240395,1.5,98765.0,98749.0,0.05058]
[1732251240396,1.551293,98765.0,98764.0,0.050572]
[1732251240591,0.05057,98769.0,98768.0,0.050569]
[1732251240990,0.05057,98769.0,98768.0,0.050609]
[1732251241193,1.551289,98772.0,98771.0,0.050569]
[1732251241391,0.05057,98769.0,98768.0,4e-05]
[1732251241596,0.05057,98769.0,98768.0,0.05061]
[1732251241993,0.05057,98769.0,98768.0,0.41141]
[1732251242298,0.05057,98769.0,98768.0,0.05061]
[1732251242496,4e-05,98773.0,98768.0,0.05061]
[1732251242699,4e-05,98773.0,98772.0,0.050568]
[1732251242700,0.0480536,98773.0,98772.0,0.050568]
[1732251244501,4e-05,98773.0,98772.0,0.050568]
[1732251244692,0.00151892,98782.0,98781.0,0.050563]
[1732251244889,0.00151892,98782.0,98781.0,0.411363]
[1732251245099,0.00151892,98782.0,98781.0,0.71512301]
[1732251245312,0.04745201,98787.0,98786.0,0.050561]
[1732251245598,0.00564,98799.0,98793.0,0.050557]
[1732251245599,0.050557,98794.0,98793.0,0.050557]
[1732251246104,0.050557,98794.0,98793.0,0.05059701]
[1732251246993,0.051094,98799.0,98798.0,0.050555]
[1732251247394,0.051094,98799.0,98798.0,0.05059501]
[1732251248102,0.00054,98799.0,98798.0,0.05059501]
[1732251248697,0.04739387,98799.0,98798.0,0.05059501]
[1732251248904,0.00054,98799.0,98798.0,0.05059501]
[1732251249895,0.00151865,98807.0,98806.0,0.050551]
[1732251250199,0.04967843,98807.0,98806.0,0.41139101]
[1732251250396,0.00151865,98807.0,98806.0,0.41139101]
[1732251255899,0.04801263,98809.0,98808.0,0.05055]
[1732251256207,0.050546,98815.0,98812.0,0.050547]
[1732251256505,0.0101,98822.0,98814.0,0.411346]
[1732251256506,0.050545,98817.0,98814.0,0.411346]
[1732251256706,0.050546,98815.0,98814.0,0.41138601]
[1732251256902,0.050546,98815.0,98814.0,0.411346]
[1732251257710,0.050543,98821.0,98814.0,0.3608]
[1732251258007,0.050544,98820.0,98819.0,0.050544]
[1732251259801,0.050546,98816.0,98814.0,0.411346]
[1732251260002,0.050546,98815.0,98814.0,0.411346]
[1732251260215,0.050586,98815.0,98814.0,0.411346]
[1732251263411,0.050586,98815.0,98814.0,0.3608]
[1732251271020,1.550586,98815.0,98814.0,0.3608]
[1732251273322,1.550586,98815.0,98802.0,0.36372]
[1732251273323,0.050552,98803.0,98802.0,0.36372]
[1732251273519,0.050552,98803.0,98802.0,0.3608]
[1732251274119,0.050552,98803.0,98793.0,0.36132]
[1732251274120,0.050557,98794.0,98793.0,0.00052]
[1732251274322,0.050558,98792.0,98791.0,0.3608]
[1732251274714,0.050598,98792.0,98791.0,0.3608]
[1732251277621,0.050598,98792.0,98791.0,0.411358]
[1732251278023,4e-05,98792.0,98791.0,0.411358]
[1732251278227,4e-05,98792.0,98791.0,0.715038]
[1732251280626,4e-05,98792.0,98791.0,0.411358]
[1732251281926,0.050598,98792.0,98791.0,0.3608]
[1732251282121,4e-05,98792.0,98791.0,0.411358]
[1732251283017,4e-05,98792.0,98791.0,0.45857086]
[1732251285629,4e-05,98792.0,98791.0,0.76225086]
[1732251287227,4e-05,98792.0,98791.0,0.45857086]
[1732251294534,0.0101,98809.0,98808.0,0.05055]
[1732251294835,0.3936,98851.0,98808.0,0.05055]
[1732251294836,0.050543,98822.0,98821.0,0.050542]
[1732251295139,0.050543,98822.0,98821.0,0.411422]
[1732251296837,0.050543,98822.0,98821.0,0.36088]
[1732251297935,0.050543,98822.0,98821.0,0.411423]
[1732251298135,0.050543,98822.0,98821.0,0.36088]
[1732251299238,0.050543,98822.0,98821.0,0.411423]
[1732251300138,0.050543,98822.0,98821.0,0.45842361]
[1732251300635,0.05054,98826.0,98825.0,0.05054]
[1732251301042,0.05054,98826.0,98825.0,0.05062]
[1732251301336,0.05054,98826.0,98825.0,8e-05]
[1732251312351,0.05054,98826.0,98825.0,0.050621]
[1732251314145,0.05054,98826.0,98825.0,8e-05]
[1732251315747,0.05054,98826.0,98825.0,0.36088]
[1732251319453,0.11432,98826.0,98791.0,0.3635]
[1732251319755,0.11432,98826.0,98797.0,0.04654815]
[1732251319756,4e-05,98800.0,98797.0,0.04654815]
[1732251319958,4e-05,98800.0,98799.0,0.436]
[1732251320162,4e-05,98800.0,98799.0,0.73964]
[1732251320860,0.0101,98811.0,98810.0,0.050549]
[1732251321059,0.0101,98822.0,98807.0,0.3608]
[1732251321251,0.0101,98822.0,98816.0,0.050545]
[1732251321451,0.0470179,98824.0,98816.0,0.050545]
[1732251321653,0.050537,98832.0,98816.0,0.050545]
[1732251321848,0.050538,98830.0,98823.0,4.001e-05]
[1732251322052,0.050539,98829.0,98823.0,4.001e-05]
[1732251323447,0.36092346,98834.0,98823.0,4.001e-05]
[1732251323647,0.04855903,98834.0,98823.0,4.001e-05]
[1732251323864,0.09909503,98834.0,98833.0,4.001e-05]
[1732251324058,0.45989503,98834.0,98833.0,4.001e-05]
[1732251324361,0.050544,98818.0,98817.0,0.103]
[1732251324860,0.050544,98818.0,98817.0,0.0516]
[1732251325461,0.050547,98813.0,98810.0,0.04717356]
[1732251325663,0.050547,98813.0,98803.0,0.16452]
[1732251325865,4e-05,98811.0,98803.0,0.16452]
[1732251329161,4e-05,98811.0,98807.0,0.40812064]
[1732251329357,4e-05,98811.0,98799.0,0.00052]
[1732251329658,0.050555,98799.0,98789.0,0.11432]
[1732251329859,0.050555,98799.0,98790.0,0.12775368]
[1732251330053,4e-05,98795.0,98790.0,0.12775368]
[1732251330660,4e-05,98795.0,98786.0,0.11432]
[1732251331056,4e-05,98795.0,98790.0,0.04745392]
[1732251331261,4e-05,98795.0,98793.0,0.3608]
[1732251334467,0.050596,98795.0,98793.0,0.3608]
[1732251335662,0.050596,98795.0,98789.0,0.04806133]
[1732251335854,0.050596,98795.0,98785.0,0.12769202]
[1732251336659,0.050596,98795.0,98785.0,0.17825302]
[1732251337669,0.050596,98795.0,98787.0,0.41136]
[1732251337969,0.050596,98795.0,98787.0,0.41196]
[1732251338676,0.050596,98795.0,98790.0,0.050559]
[1732251339563,0.050596,98795.0,98788.0,0.3608]
[1732251341469,0.050596,98795.0,98788.0,0.41136]
[1732251341669,0.050596,98795.0,98788.0,0.41188]
[1732251344574,0.050596,98795.0,98791.0,0.050558]
[1732251344778,0.050596,98795.0,98788.0,0.36132]
[1732251345971,0.050559,98789.0,98788.0,0.00052]
[1732251346272,0.050559,98789.0,98777.0,0.0024]
[1732251346273,0.050565,98778.0,98777.0,0.0024]
[1732251346482,0.050569,98770.0,98763.0,0.052973]
[1732251346670,0.050574,98760.0,98759.0,0.3608]
[1732251346872,0.0478,98769.0,98759.0,0.04650118]
[1732251347175,0.050577,98755.0,98754.0,0.050577]
[1732251347568,0.050617,98755.0,98754.0,0.050577]
[1732251347782,4e-05,98755.0,98750.0,0.00151916]